bitfinex/quotes_BTCUSD_20250314
["timestamp","ask_amount","ask_price","bid_price","bid_amount"]
[1741960740438,6e-07,83769.0,83768.0,0.38953185]
[1741960741013,0.0003396,83798.0,83793.0,0.331817]
[1741960742634,0.0003396,83798.0,83793.0,0.333817]
[1741960742836,0.0003396,83798.0,83793.0,0.383517]
[1741960743915,2e-07,83798.0,83797.0,0.250605]
[1741960744114,2e-07,83798.0,83797.0,0.34574585]
[1741960744322,2e-07,83798.0,83797.0,0.34074585]
[1741960744951,2e-07,83798.0,83797.0,0.64074585]
[1741960745241,2e-07,83798.0,83797.0,0.64574585]
[1741960745620,0.10620428,83831.0,83797.0,0.64574585]
[1741960745621,0.10620428,83831.0,83830.0,0.250506]
[1741960745837,0.10620428,83831.0,83827.0,0.011929]
[1741960745838,0.10120428,83831.0,83827.0,0.011929]
[1741960746135,0.10120428,83831.0,83827.0,0.250515]
[1741960746374,0.10120428,83831.0,83830.0,0.011928]
[1741960746892,0.10120428,83831.0,83830.0,0.010928]
[1741960747100,0.0003394,83841.0,83834.0,0.011928]
[1741960747578,0.3003394,83841.0,83834.0,0.011928]
[1741960747799,0.0122674,83835.0,83830.0,0.010928]
[1741960747992,0.011928,83830.0,83825.0,0.011929]
[1741960748482,0.0003394,83835.0,83830.0,0.011928]
[1741960748855,0.0003394,83835.0,83817.0,0.01193]
[1741960748856,0.250514,83828.0,83817.0,0.01193]
[1741960749022,0.011929,83825.0,83820.0,0.01193]
[1741960749227,0.0003394,83835.0,83826.0,0.011929]
[1741960749228,0.011928,83834.0,83826.0,0.011929]
[1741960749421,0.001,83831.0,83828.0,0.011929]
[1741960749620,0.011928,83830.0,83829.0,0.00941383]
[1741960749956,0.011928,83830.0,83812.0,0.238629]
[1741960749957,0.011932,83806.0,83799.0,0.08]
[1741960750166,0.011932,83805.0,83798.0,0.011933]
[1741960750366,0.011933,83801.0,83800.0,0.00965503]
[1741960750560,0.250596,83800.0,83784.0,0.238706]
[1741960750764,0.011934,83793.0,83786.0,0.011935]
[1741960750968,0.011934,83793.0,83787.0,0.00976321]
[1741960751389,0.25061,83795.0,83788.0,0.238697]
[1741960751567,0.011934,83792.0,83789.0,0.00974656]
[1741960751768,0.238694,83789.0,83783.0,0.08]
[1741960751950,0.011934,83789.0,83784.0,0.00978818]
[1741960752146,0.250604,83798.0,83792.0,0.011934]
[1741960752350,0.250604,83798.0,83793.0,0.00971328]
[1741960752551,0.3,83807.0,83806.0,0.011932]
[1741960752802,0.3,83807.0,83806.0,0.00960511]
[1741960753001,0.01193,83816.0,83806.0,0.00960511]
[1741960753002,0.01206871,83820.0,83806.0,0.00960511]
[1741960753201,0.011931,83811.0,83797.0,0.0471]
[1741960753452,0.01193,83819.0,83812.0,0.011931]
[1741960753656,0.011931,83814.0,83813.0,0.00954689]
[1741960754053,0.011931,83813.0,83806.0,0.011932]
[1741960754167,0.011931,83812.0,83806.0,0.011932]
[1741960754372,0.011931,83814.0,83808.0,0.011932]
[1741960754573,0.250539,83819.0,83812.0,0.011931]
[1741960754770,0.01193,83816.0,83813.0,0.00879689]
[1741960754995,0.01193,83816.0,83810.0,0.011931]
[1741960754996,0.01193,83816.0,83811.0,0.011931]
[1741960755280,0.01193,83816.0,83810.0,0.011931]
[1741960755281,0.011931,83815.0,83812.0,0.0088052]
[1741960755480,0.011931,83813.0,83812.0,0.0088052]
[1741960755684,0.011931,83815.0,83808.0,0.238638]
[1741960755888,0.3,83821.0,83808.0,0.011932]
[1741960756089,0.238626,83813.0,83809.0,0.00883016]
[1741960756292,0.011931,83812.0,83809.0,0.00883016]
[1741960756707,0.011931,83812.0,83805.0,0.011932]
[1741960757122,0.011931,83812.0,83806.0,0.00885511]
[1741960757325,0.238595,83824.0,83815.0,0.011931]
[1741960757602,0.01193,83820.0,83816.0,0.00877193]
[1741960757827,0.01193,83820.0,83810.0,0.011931]
[1741960757828,0.01193,83818.0,83811.0,0.250561]
[1741960757987,0.01193,83818.0,83812.0,0.0088052]
[1741960758401,0.31193,83820.0,83813.0,0.011931]
[1741960758614,0.01193,83818.0,83814.0,0.00878857]
[1741960758811,0.4173,83829.0,83823.0,0.011929]
[1741960759011,0.011929,83828.0,83822.0,0.238598]
[1741960759241,0.011929,83828.0,83821.0,0.01193]
[1741960759242,0.011929,83828.0,83823.0,0.00871372]
[1741960759443,0.011929,83828.0,83821.0,0.01193]
[1741960759645,0.011929,83828.0,83822.0,0.00872203]
[1741960759848,0.250521,83825.0,83822.0,0.00872203]
[1741960760088,0.250521,83825.0,83818.0,0.250541]
[1741960760390,0.01193,83818.0,83811.0,0.011931]
[1741960760546,0.01193,83821.0,83814.0,0.238623]
[1741960760761,0.250521,83825.0,83817.0,0.01193]
[1741960761100,0.011929,83824.0,83818.0,0.01193]
[1741960761565,0.01193,83822.0,83817.0,0.01193]
[1741960761760,0.01193,83821.0,83815.0,0.011931]
[1741960761945,0.550551,83815.0,83814.0,0.001]
[1741960762171,0.42923,83820.0,83754.0,0.4172105]
[1741960762172,0.011934,83788.0,83787.0,0.078]
[1741960762388,0.011934,83788.0,83755.0,0.06188059]
[1741960762389,0.238726,83778.0,83776.0,0.078]
[1741960762565,0.238726,83778.0,83773.0,0.0468]
[1741960762566,0.238731,83776.0,83773.0,0.0468]
[1741960762678,0.011937,83769.0,83768.0,0.0781698]
[1741960762877,0.011937,83773.0,83768.0,0.0001698]
[1741960763141,0.011937,83770.0,83768.0,0.0001698]
[1741960763349,0.25068,83772.0,83768.0,0.0001698]
[1741960763551,0.250688,83769.0,83768.0,0.0001698]
[1741960764495,0.250688,83769.0,83768.0,0.0041698]
[1741960764932,0.011937,83769.0,83768.0,0.0001698]
[1741960765344,0.011937,83769.0,83768.0,0.0031698]
[1741960765543,0.011937,83773.0,83768.0,0.0031698]
[1741960765976,0.011936,83774.0,83768.0,0.0171068]
[1741960766181,0.011937,83773.0,83768.0,0.0051698]
[1741960766529,0.011936,83778.0,83773.0,0.23874]
[1741960766692,0.011936,83778.0,83772.0,0.011937]
[1741960766892,0.250685,83771.0,83768.0,0.0051698]
[1741960767097,0.011937,83769.0,83768.0,0.0051698]
[1741960767775,0.250688,83769.0,83768.0,0.0001698]
[1741960768152,0.250688,83769.0,83768.0,0.0011698]
[1741960768353,0.011937,83772.0,83768.0,0.0001698]
[1741960768669,0.011937,83769.0,83768.0,0.0001698]
[1741960768890,0.011937,83769.0,83768.0,0.0021698]
[1741960769010,0.011937,83771.0,83768.0,0.0021698]
[1741960769216,0.011936,83774.0,83768.0,0.0021698]
[1741960769620,0.011937,83772.0,83768.0,0.0021698]
[1741960769846,0.011936,83775.0,83768.0,0.0141068]
[1741960770248,0.011936,83775.0,83768.0,0.0021698]
[1741960770249,0.011937,83769.0,83768.0,0.0021698]
[1741960770456,0.238737,83774.0,83768.0,0.0021698]
[1741960770648,0.238743,83772.0,83768.0,0.0021698]
[1741960770829,0.011937,83771.0,83768.0,0.0001698]
[1741960771149,0.011936,83775.0,83770.0,0.011937]
[1741960771360,0.011936,83775.0,83769.0,0.011937]
[1741960771361,0.011937,83773.0,83769.0,0.00916305]
[1741960771552,0.011937,83772.0,83769.0,0.00916305]
[1741960771755,0.011937,83770.0,83769.0,0.00916305]
[1741960771981,0.250688,83769.0,83752.0,0.238799]
[1741960772179,0.250688,83769.0,83751.0,0.0125583]
[1741960772180,0.011937,83773.0,83763.0,0.011938]
[1741960772474,0.011937,83770.0,83763.0,0.011938]
[1741960772674,0.011938,83765.0,83760.0,0.011938]
[1741960772882,0.011938,83765.0,83681.0,0.2]
[1741960772883,0.011938,83760.0,83750.0,0.2389725]
[1741960773057,0.011938,83760.0,83753.0,0.011939]
[1741960773280,0.011938,83760.0,83754.0,0.011939]
[1741960773463,0.011938,83760.0,83750.0,0.0121095]
[1741960773464,0.238786,83757.0,83750.0,0.0001695]
[1741960773662,0.011939,83756.0,83751.0,0.0244983]
[1741960774063,0.250719,83759.0,83753.0,0.011939]
[1741960774265,0.011938,83766.0,83760.0,0.011938]
[1741960774668,0.011938,83765.0,83759.0,0.250717]
[1741960774830,0.011938,83765.0,83760.0,0.009238]
[1741960775037,0.011938,83761.0,83760.0,0.009238]
[1741960775236,0.011938,83761.0,83754.0,0.250733]
[1741960775880,0.250704,83764.0,83756.0,0.011939]
[1741960776093,0.0495,83775.0,83752.0,0.250737]
[1741960776094,0.0495,83788.0,83775.0,0.011936]
[1741960776292,0.3,83783.0,83772.0,0.011937]
[1741960776519,0.011936,83777.0,83769.0,0.011937]
[1741960776652,0.011936,83774.0,83767.0,0.250692]
[1741960776860,0.011936,83776.0,83770.0,0.250685]
[1741960777058,0.250669,83776.0,83770.0,0.011937]
[1741960777264,0.011937,83772.0,83767.0,0.011937]
[1741960777463,0.011936,83775.0,83768.0,0.011937]
[1741960777644,0.250673,83774.0,83767.0,0.011937]
[1741960777845,0.011936,83774.0,83769.0,0.011937]
[1741960778040,0.011936,83778.0,83770.0,0.011937]
[1741960778243,0.238748,83770.0,83763.0,0.011938]
[1741960778444,0.238748,83770.0,83760.0,0.012938]
[1741960778445,0.011937,83767.0,83760.0,0.011938]
[1741960778694,0.011937,83769.0,83768.0,0.001]
[1741960779099,0.011937,83767.0,83762.0,0.011938]
[1741960779251,0.011937,83767.0,83762.0,0.250709]
[1741960779567,0.011937,83767.0,83760.0,0.011938]
[1741960779982,0.011937,83767.0,83761.0,0.238774]
[1741960780240,0.011937,83769.0,83763.0,0.011938]
[1741960780902,0.250666,83777.0,83764.0,0.250704]
[1741960781119,0.0976392,83855.0,83776.0,0.011936]
[1741960781120,0.250638,83786.0,83776.0,0.011936]
[1741960781327,0.250638,83786.0,83780.0,0.011936]
[1741960781465,0.011934,83788.0,83782.0,0.011935]
[1741960781665,0.011935,83787.0,83780.0,0.011936]
[1741960781872,0.011935,83787.0,83782.0,0.011935]
[1741960782108,0.011934,83794.0,83787.0,0.011935]
[1741960782301,0.011934,83792.0,83786.0,0.238702]
[1741960782505,0.238677,83796.0,83788.0,0.238695]
[1741960782839,0.238649,83805.0,83796.0,0.011933]
[1741960783060,0.011932,83808.0,83797.0,0.011933]
[1741960783187,0.011932,83802.0,83796.0,0.011933]
[1741960783807,0.011932,83808.0,83797.0,0.011933]
[1741960784012,0.011932,83808.0,83796.0,0.011933]
[1741960784013,0.011931,83815.0,83810.0,0.011931]
[1741960784225,0.238652,83804.0,83801.0,0.0801]
[1741960784421,0.0003386,83820.0,83816.0,0.250547]
[1741960784621,0.0003386,83820.0,83816.0,0.01193]
[1741960784842,0.0003386,83820.0,83813.0,0.011931]
[1741960785060,0.0003386,83820.0,83819.0,0.01193]
[1741960785586,0.238609,83819.0,83812.0,0.011931]
[1741960785806,0.01193,83818.0,83813.0,0.011931]
[1741960786189,0.0122686,83820.0,83814.0,0.250553]
[1741960786400,0.0003386,83820.0,83819.0,0.250539]
[1741960786807,0.0003386,83820.0,83819.0,0.01193]
[1741960787009,0.0003386,83820.0,83816.0,0.250547]
[1741960787215,0.0003386,83820.0,83816.0,0.01193]
[1741960787587,0.0003386,83820.0,83817.0,0.01193]
[1741960787746,0.0003386,83820.0,83819.0,0.01193]
[1741960789297,0.0003386,83820.0,83819.0,0.01293]
[1741960789701,0.0003386,83820.0,83819.0,0.09022293]
[1741960789878,0.0003386,83820.0,83819.0,0.08903]
[1741960790881,0.0003386,83820.0,83819.0,0.09022284]
[1741960791105,0.0003386,83820.0,83819.0,0.08922284]
[1741960791307,0.0003386,83820.0,83819.0,0.08803]
[1741960791509,0.0003386,83820.0,83819.0,0.09303]
[1741960791714,0.0003386,83820.0,83819.0,0.08803]
[1741960792113,0.0003386,83820.0,83819.0,0.09303]
[1741960792318,0.0003386,83820.0,83819.0,0.08803]
[1741960792703,0.0003386,83820.0,83819.0,0.09403]
[1741960795059,0.0003386,83820.0,83819.0,0.01693]
[1741960796141,0.0003386,83820.0,83819.0,0.005]
[1741960796341,0.0003386,83820.0,83819.0,0.01693]
[1741960796946,0.0122686,83820.0,83819.0,0.005]
[1741960797448,1.6244386,83820.0,83797.0,0.011933]
[1741960797660,0.3,83801.0,83796.0,0.011933]
[1741960797863,0.238663,83800.0,83794.0,0.011934]
[1741960798068,0.011933,83799.0,83793.0,0.250617]
[1741960798293,0.011932,83807.0,83798.0,0.011933]
[1741960798516,0.4176386,83820.0,83819.0,0.01193]
[1741960798752,0.4176386,83820.0,83807.0,0.011932]
[1741960798753,0.011931,83814.0,83807.0,0.011932]
[1741960798978,0.011931,83815.0,83809.0,0.011931]
[1741960799199,0.011932,83807.0,83801.0,0.011933]
[1741960799440,0.33441961,83820.0,83807.0,0.011932]
[1741960799650,0.01193,83816.0,83809.0,0.250566]
[1741960799889,0.01193,83816.0,83810.0,0.011931]
[1741960800083,0.250539,83819.0,83811.0,0.250563]
[1741960800294,0.238612,83819.0,83808.0,0.238638]
[1741960800488,0.238612,83819.0,83720.0,0.035902]
[1741960800489,0.005,83729.0,83646.0,0.05918981]
[1741960800826,0.2,83753.0,83565.0,0.0946]
[1741960800827,0.56548085,83685.0,83657.0,0.011953]
[1741960800996,7.77402599,83685.0,83618.0,0.035945]
[1741960801204,7.77402599,83685.0,83619.0,0.00119527]
[1741960801205,0.05,83651.0,83619.0,0.00119527]
[1741960801382,0.05,83651.0,83614.0,0.95048388]
[1741960801383,6.53253375,83651.0,83650.0,1e-06]
[1741960801589,0.60115,83615.0,83614.0,0.95048388]
[1741960801788,0.601186,83603.0,83590.0,0.75788]
[1741960802056,0.601186,83603.0,83568.0,0.004796]
[1741960802057,0.05,83569.0,83568.0,0.004796]
[1741960802173,0.05,83569.0,83551.0,0.0008]
[1741960802174,0.361968,83552.0,83551.0,0.00199647]
[1741960802390,0.05,83515.0,83514.0,0.00119663]
[1741960802799,0.05,83512.0,83504.0,0.00119696]
[1741960802999,0.3,83514.0,83502.0,0.48029529]
[1741960803197,0.011975,83503.0,83502.0,0.48019575]
[1741960803402,0.011975,83503.0,83430.0,0.035]
[1741960803403,0.3,83480.0,83457.0,0.094382]
[1741960803605,0.3,83480.0,83431.0,0.6961]
[1741960803606,0.011979,83473.0,83435.0,0.75868]
[1741960803826,0.005,83492.0,83476.0,0.011979]
[1741960804026,0.005,83492.0,83436.0,0.00119796]
[1741960804027,0.239568,83484.0,83477.0,0.10767593]
[1741960804230,0.239568,83484.0,83419.0,0.012479]
[1741960804231,0.05,83408.0,83397.0,1.092]
[1741960804433,0.011987,83417.0,83393.0,0.5]
[1741960804434,0.277816,83394.0,83393.0,0.5]
[1741960804711,0.02811604,83394.0,83393.0,0.9174]
[1741960804930,0.011988,83410.0,83391.0,1e-06]
[1741960804931,0.05464789,83392.0,83391.0,1e-06]
[1741960805136,0.04765689,83352.0,83276.0,0.0767]
[1741960805339,0.04765689,83352.0,83267.0,0.012009]
[1741960805340,0.012005,83295.0,83267.0,0.012009]
[1741960805556,0.012005,83295.0,83233.0,0.5]
[1741960805557,0.4796,83288.0,83205.0,0.3343912]
[1741960805763,0.05,83165.0,83136.0,0.235]
[1741960805989,0.03399901,83276.0,83136.0,0.235]
[1741960805990,0.63071004,83137.0,83136.0,0.025]
[1741960806209,0.3,83115.0,83092.0,0.012034]
[1741960806412,0.012029,83130.0,83079.0,0.240734]
[1741960806413,0.02811604,83099.0,83098.0,0.01454789]
[1741960806623,0.04014904,83099.0,83098.0,0.00815406]
[1741960806831,0.540665,83103.0,83051.0,0.240815]
[1741960806832,0.32811604,83072.0,83059.0,0.2]
[1741960807035,0.005,83128.0,83061.0,0.012039]
[1741960807036,0.005,83087.0,83061.0,0.012039]
[1741960807271,0.02811604,83105.0,83103.0,0.012033]
[1741960807495,0.012032,83109.0,83072.0,0.252792]
[1741960807700,0.2,83134.0,83071.0,0.07]
[1741960807701,0.012031,83118.0,83078.0,0.012036]
[1741960807904,0.93656236,83099.0,83098.0,0.012033]
[1741960808119,0.05,83178.0,83098.0,0.012033]
[1741960808120,0.012029,83132.0,83103.0,0.005]
[1741960808327,0.5,83173.0,83098.0,0.0281788]
[1741960808328,0.012028,83136.0,83114.0,0.05]
[1741960808540,0.0461,83194.0,83100.0,0.012033]
[1741960808541,0.05,83156.0,83100.0,0.012033]
[1741960808752,0.05,83156.0,83095.0,0.240685]
[1741960808753,0.13339412,83135.0,83134.0,8.1e-07]
[1741960808957,0.03375858,83197.0,83134.0,0.76104]
[1741960809166,0.03375858,83197.0,83090.0,0.240702]
[1741960809167,0.01203,83119.0,83106.0,0.005]
[1741960809377,0.012032,83110.0,83106.0,0.005]
[1741960809584,0.012032,83110.0,83054.0,0.76104]
[1741960809585,0.240698,83092.0,83065.0,0.2]
[1741960809793,0.012033,83100.0,83062.0,0.012039]
[1741960810012,0.012033,83100.0,83034.0,0.76104]
[1741960810013,0.98283993,83121.0,83118.0,0.240619]
[1741960810218,0.5,83166.0,83104.0,0.005]
[1741960810219,0.05,83147.0,83104.0,0.005]
[1741960810442,0.04731726,83139.0,83105.0,0.012032]
[1741960810649,0.50657964,83149.0,83129.0,0.65206014]
[1741960810848,0.240478,83168.0,83139.0,0.56282655]
[1741960811090,0.02882399,83165.0,83158.0,0.60294305]
[1741960811261,0.55850535,83228.0,83143.0,0.012027]
[1741960811262,0.23935029,83192.0,83167.0,0.05]
[1741960811496,0.012016,83218.0,83173.0,0.012023]
[1741960811696,0.05,83241.0,83182.0,0.65206014]
[1741960811697,0.02446557,83227.0,83182.0,0.65206014]
[1741960811902,0.240261,83243.0,83181.0,0.240437]
[1741960812110,0.012014,83230.0,83208.0,0.63867944]
[1741960812336,0.005,83276.0,83220.0,0.65206014]
[1741960812553,0.05,83285.0,83243.0,0.64617472]
[1741960812771,0.05,83285.0,83161.0,0.005]
[1741960812772,0.012006,83287.0,83251.0,0.65206014]
[1741960812979,0.012007,83284.0,83251.0,0.65206014]
[1741960813189,0.012006,83287.0,83260.0,0.65206014]
[1741960813401,0.012006,83287.0,83229.0,0.012015]
[1741960813402,0.05498231,83288.0,83274.0,0.65206014]
[1741960813836,0.05498231,83288.0,83274.0,0.66406814]
[1741960814046,0.05498231,83288.0,83268.0,0.012009]
[1741960814047,0.90016362,83312.0,83299.0,0.65206014]
[1741960814259,0.90016362,83312.0,83253.0,0.240229]
[1741960814260,0.012003,83311.0,83300.0,0.75755775]
[1741960814462,0.012003,83311.0,83260.0,0.01201]
[1741960814463,0.012003,83310.0,83301.0,0.7618]
[1741960814678,0.240041,83319.0,83301.0,0.7618]
[1741960814679,0.012002,83319.0,83301.0,0.7607467]
[1741960814886,0.2,83331.0,83301.0,0.7607467]
[1741960815124,0.2,83331.0,83306.0,0.012003]
[1741960815316,0.0024024,83337.0,83301.0,0.78494738]
[1741960815523,0.0024024,83337.0,83302.0,0.24009]
[1741960815676,0.0024024,83337.0,83305.0,0.012004]
[1741960815926,0.0024024,83337.0,83304.0,0.012004]
[1741960815927,0.0024024,83337.0,83320.0,0.65080885]
[1741960816384,0.0024024,83337.0,83307.0,0.012003]
[1741960816701,0.0024024,83337.0,83325.0,0.240023]
[1741960816831,0.0008,83349.0,83345.0,0.251962]
[1741960816979,0.011994,83374.0,83325.0,0.012001]
[1741960817179,0.01655917,83364.0,83334.0,0.239996]
[1741960817382,0.01655917,83364.0,83345.0,0.239965]
[1741960817577,0.01655917,83364.0,83351.0,0.239946]
[1741960817774,0.01655917,83364.0,83330.0,0.012]
[1741960817775,2.4847,83363.0,83290.0,0.65206014]
[1741960818020,0.01655917,83364.0,83352.0,0.00843501]
[1741960818362,0.011998,83344.0,83274.0,0.6953]
[1741960818517,0.01655917,83311.0,83295.0,0.02402961]
[1741960818725,0.3,83319.0,83295.0,0.02402961]
[1741960818929,0.65206014,83340.0,83302.0,0.0207195]
[1741960819130,0.3,83339.0,83304.0,0.012004]
[1741960819328,0.2,83370.0,83301.0,0.18393709]
[1741960819329,0.05977743,83361.0,83301.0,0.19557237]
[1741960819528,0.65206014,83370.0,83342.0,0.239974]
[1741960819729,0.65206014,83352.0,83305.0,0.00869866]
[1741960819990,0.65206014,83350.0,83313.0,0.012002]
[1741960820190,0.06598647,83383.0,83302.0,0.3]
[1741960820191,0.000341,83337.0,83336.0,0.239992]
[1741960820394,0.000341,83337.0,83320.0,0.3]
[1741960820395,0.65206014,83360.0,83320.0,0.240035]
[1741960820693,0.65206014,83360.0,83270.0,0.70206014]
[1741960820694,0.50122209,83330.0,83284.0,0.012007]
[1741960820906,0.50122209,83330.0,83205.0,3.004601]
[1741960820907,0.240109,83296.0,83242.0,0.240262]
[1741960821100,0.240109,83296.0,83227.0,0.012185]
[1741960821101,0.50122209,83270.0,83260.0,0.01201]
[1741960821314,0.50122209,83280.0,83277.0,0.240159]
[1741960821529,0.5,83323.0,83224.0,0.05]
[1741960821530,0.50122209,83290.0,83224.0,0.05]
[1741960821826,0.50122209,83290.0,83278.0,0.00885026]
[1741960822056,0.50122209,83290.0,83224.0,0.05]
[1741960822057,0.2,83320.0,83286.0,0.012006]
[1741960822259,0.2,83320.0,83218.0,0.005]
[1741960822260,0.50122209,83310.0,83296.0,0.012005]
[1741960822462,0.50122209,83310.0,83308.0,0.240072]
[1741960822674,0.50122209,83310.0,83298.0,0.240101]
[1741960822886,0.50122209,83320.0,83319.0,0.240041]
[1741960823092,0.2,83372.0,83327.0,0.240018]
[1741960823263,0.036104,83385.0,83299.0,0.36887634]
[1741960823264,0.50122209,83350.0,83349.0,0.23373192]
[1741960823472,0.50122209,83350.0,83349.0,0.76216]
[1741960823672,0.51321909,83350.0,83349.0,0.72289715]
[1741960823873,0.03308306,83350.0,83349.0,0.64461486]
[1741960824075,0.03308306,83350.0,83349.0,0.63603084]
[1741960824279,0.03308306,83350.0,83349.0,0.63406025]
[1741960824486,0.03308306,83350.0,83349.0,0.59795572]
[1741960824692,0.03308306,83350.0,83349.0,0.58308149]
[1741960826076,5.95357006,83350.0,83258.0,0.6953]
[1741960826311,5.95357006,83350.0,83346.0,0.011998]
[1741960826312,0.53430515,83350.0,83346.0,0.011998]
[1741960826516,0.03308306,83350.0,83322.0,0.012001]
[1741960826726,0.03308306,83350.0,83349.0,0.011997]
[1741960826923,0.05998647,83383.0,83349.0,0.011997]
[1741960826924,0.05998647,83383.0,83369.0,2e-08]
[1741960827132,0.05998647,83383.0,83382.0,0.239859]
[1741960827335,0.50122209,83400.0,83387.0,0.21622879]
[1741960827536,0.50122209,83400.0,83386.0,0.239848]
[1741960827739,0.50122209,83400.0,83365.0,0.011995]
[1741960827939,0.50122209,83400.0,83349.0,1.12217]
[1741960828126,0.50122209,83360.0,83358.0,0.239926]
[1741960828521,0.50122209,83360.0,83345.0,0.239966]
[1741960828522,0.3,83359.0,83345.0,0.239966]
[1741960828724,0.50122209,83360.0,83236.0,0.0783]
[1741960828725,0.012005,83295.0,83236.0,0.0783]
[1741960828931,0.2,83329.0,83215.0,0.76232]
[1741960828932,0.3,83246.0,83215.0,0.76232]
[1741960829055,0.47,83245.0,83243.0,0.012013]
[1741960829255,0.005,83291.0,83222.0,0.36048]
[1741960829256,2e-08,83263.0,83262.0,0.252215]
[1741960829461,0.3,83299.0,83290.0,0.012006]
[1741960829660,0.00922922,83334.0,83268.0,0.012009]
[1741960829661,0.3,83309.0,83268.0,0.012009]
[1741960829936,0.2325,83308.0,83292.0,0.012005]
[1741960830127,0.2325,83308.0,83269.0,0.00984717]
[1741960830128,0.4173,83308.0,83269.0,0.00984717]
[1741960830334,0.3,83307.0,83295.0,0.240109]
[1741960830450,0.3,83307.0,83274.0,0.252176]
[1741960830654,0.3,83307.0,83262.0,0.76232]
[1741960830655,0.3,83304.0,83303.0,0.012004]
[1741960830859,0.3,83304.0,83301.0,0.240091]
[1741960831280,0.50122209,83340.0,83263.0,0.3]
[1741960831478,0.50122209,83340.0,83332.0,0.239961]
[1741960831479,0.4173,83339.0,83332.0,0.239961]
[1741960831677,0.91852209,83340.0,83334.0,0.239998]
[1741960831882,0.91852209,83340.0,83333.0,0.69473674]
[1741960832133,0.91852209,83340.0,83333.0,0.68485105]
[1741960832304,0.3,83338.0,83333.0,0.68485105]
[1741960832531,0.4173,83340.0,83333.0,0.68485105]
[1741960832742,0.4173,83340.0,83333.0,0.68333392]
[1741960833106,0.417641,83340.0,83334.0,0.239998]
[1741960833305,1e-06,83340.0,83339.0,0.011999]
[1741960833485,8e-08,83355.0,83354.0,0.251937]
[1741960833895,8e-08,83355.0,83354.0,0.00913164]
[1741960834099,0.011998,83346.0,83306.0,0.012003]
[1741960834328,0.31454085,83344.0,83339.0,0.05]
[1741960834551,0.02653985,83340.0,83339.0,0.00384882]
[1741960834763,0.02653985,83340.0,83252.0,0.6953]
[1741960834764,0.012005,83297.0,83263.0,0.01201]
[1741960834969,0.50122209,83290.0,83270.0,0.012009]
[1741960835167,0.240051,83316.0,83230.0,0.76244]
[1741960835168,0.4173,83289.0,83257.0,0.240217]
[1741960835397,1.0981,83315.0,83259.0,0.01201]
[1741960835398,0.50122209,83280.0,83259.0,0.01201]
[1741960835573,0.50122209,83270.0,83251.0,0.0121815]
[1741960835777,0.4173,83288.0,83274.0,0.012008]
[1741960835978,0.91852209,83290.0,83267.0,0.012009]
[1741960836176,0.50122209,83280.0,83275.0,0.240167]
[1741960836395,0.01474453,83269.0,83255.0,0.75095675]
[1741960836600,0.3,83267.0,83255.0,0.75095675]
[1741960836817,0.3,83267.0,83243.0,0.012013]
[1741960836818,0.01454085,83263.0,83217.0,0.012016]
[1741960837017,0.01474453,83269.0,83205.0,0.012018]
[1741960837018,0.3,83226.0,83205.0,0.012018]
[1741960837227,0.3,83226.0,83202.0,0.012018]
[1741960837228,0.50122209,83210.0,83208.0,0.252376]
[1741960837428,0.3,83219.0,83218.0,0.240332]
[1741960837629,0.3,83219.0,83209.0,0.00807023]
[1741960837871,0.012014,83236.0,83209.0,0.00807023]
[1741960837872,0.01474453,83210.0,83209.0,0.012017]
[1741960838255,5.3e-07,83210.0,83209.0,0.252375]
[1741960838433,5.3e-07,83210.0,83205.0,0.01454085]
[1741960838664,5.3e-07,83210.0,83209.0,0.26691585]
[1741960838880,5.3e-07,83210.0,83209.0,0.252375]
[1741960839095,0.50122209,83260.0,83207.0,0.240364]
[1741960839096,0.00809104,83209.0,83207.0,0.240364]
[1741960839265,4e-08,83209.0,83208.0,0.774818]
[1741960839627,4e-08,83209.0,83204.0,0.240372]
[1741960839628,4e-08,83209.0,83202.0,0.252396]
[1741960839840,4e-08,83209.0,83191.0,0.0008]
[1741960839841,0.240374,83204.0,83191.0,0.0008]
[1741960840036,4e-08,83209.0,83118.0,0.24062]
[1741960840037,0.012023,83168.0,83118.0,0.24062]
[1741960840267,0.012023,83168.0,83112.0,0.240638]
[1741960840268,0.012026,83152.0,83112.0,0.240638]
[1741960840467,0.4173,83152.0,83133.0,0.012028]
[1741960840669,0.3,83152.0,83107.0,0.360979]
[1741960840874,0.240423,83187.0,83148.0,0.012026]
[1741960841073,0.240423,83187.0,83136.0,0.76297]
[1741960841074,0.012024,83161.0,83136.0,0.76297]
[1741960841313,0.3,83185.0,83136.0,0.76297]
[1741960841314,0.50122209,83180.0,83136.0,0.00017]
[1741960841507,0.4173,83186.0,83136.0,0.00017]
[1741960841508,0.4173,83186.0,83139.0,0.7628]
[1741960841670,1.0981,83198.0,83175.0,0.012022]
[1741960841866,0.50122209,83200.0,83184.0,0.012021]
[1741960842109,0.50122209,83200.0,83173.0,0.012023]
[1741960842110,0.51324109,83200.0,83173.0,0.012023]
[1741960842281,0.01454085,83189.0,83148.0,0.252559]
[1741960842474,0.50122209,83161.0,83160.0,0.012025]
[1741960842679,0.00136541,83170.0,83168.0,0.240476]
[1741960842890,0.00136541,83170.0,83169.0,0.02094998]
[1741960844208,0.50122209,83200.0,83195.0,0.012019]
[1741960844467,0.00581175,83201.0,83186.0,0.012021]
[1741960844717,0.00581175,83201.0,83152.0,0.76312]
[1741960844718,0.01202,83188.0,83164.0,0.012024]
[1741960844943,0.3,83190.0,83171.0,0.012023]
[1741960845227,0.3,83179.0,83156.0,0.012025]
[1741960845470,0.3,83179.0,83103.0,0.005]
[1741960845471,0.012023,83171.0,83132.0,0.360871]
[1741960845706,0.3,83165.0,83143.0,0.012027]
[1741960845964,0.3,83165.0,83136.0,0.012198]
[1741960845965,0.3,83165.0,83150.0,0.012026]